[Event "*** MasterClass Titled Tuesday Blitz"]
[Site "Chess.com"]
[Date "2017.10.03"]
[Round "7"]
[White "ArnaudovP"]
[Black "tigra"]
[Result "1/2-1/2"]
[WhiteElo "2485"]
[BlackElo "2653"]
[TimeControl "180+2"]
[EndTime "14:41:21 PDT"]
[Termination "Game drawn by stalemate"]

1. Nf3 {[%clk 0:03:01.9]} 1... d5 {[%clk 0:02:47.8]} 2. c4 {[%clk 0:03:02.3]}
2... d4 {[%clk 0:02:45.5]} 3. e3 {[%clk 0:02:58.7]} 3... c5 {[%clk 0:02:45]} 4.
b4 {[%clk 0:02:59.3]} 4... dxe3 {[%clk 0:02:45.1]} 5. fxe3 {[%clk 0:03:00.3]}
5... cxb4 {[%clk 0:02:46.7]} 6. d4 {[%clk 0:03:01.5]} 6... Nf6 {[%clk
0:02:46.6]} 7. Bd3 {[%clk 0:03:02.2]} 7... g6 {[%clk 0:02:42.8]} 8. O-O {[%clk
0:02:57.9]} 8... Bg7 {[%clk 0:02:44.3]} 9. Bb2 {[%clk 0:02:57.3]} 9... O-O
{[%clk 0:02:44.7]} 10. a3 {[%clk 0:02:58.3]} 10... bxa3 {[%clk 0:02:45]} 11.
Nxa3 {[%clk 0:02:59.3]} 11... b6 {[%clk 0:02:45.7]} 12. e4 {[%clk 0:02:58.9]}
12... Nfd7 {[%clk 0:02:30.5]} 13. e5 {[%clk 0:02:57.6]} 13... Bb7 {[%clk
0:02:28.7]} 14. Qe2 {[%clk 0:02:49.1]} 14... e6 {[%clk 0:02:23.9]} 15. Nb5
{[%clk 0:02:48.8]} 15... f5 {[%clk 0:02:15.7]} 16. Ba3 {[%clk 0:02:44.7]} 16...
a5 {[%clk 0:01:52.9]} 17. Rab1 {[%clk 0:02:36.1]} 17... Na6 {[%clk 0:01:32]} 18.
Bxf8 {[%clk 0:02:12.1]} 18... Qxf8 {[%clk 0:01:18.1]} 19. Nd6 {[%clk 0:02:11.1]}
19... Bxf3 {[%clk 0:01:18.7]} 20. Qxf3 {[%clk 0:02:09.7]} 20... Nb4 {[%clk
0:01:18.2]} 21. Rxb4 {[%clk 0:02:00]} 21... axb4 {[%clk 0:01:18.6]} 22. Qb7
{[%clk 0:01:57.5]} 22... Rd8 {[%clk 0:01:18.5]} 23. Bc2 {[%clk 0:01:53.9]} 23...
Nxe5 {[%clk 0:01:09.8]} 24. dxe5 {[%clk 0:01:52.9]} 24... Bxe5 {[%clk
0:01:11.4]} 25. Nb5 {[%clk 0:01:51]} 25... Qc5+ {[%clk 0:01:12.4]} 26. Kh1
{[%clk 0:01:47.7]} 26... Qxc4 {[%clk 0:01:12.8]} 27. Re1 {[%clk 0:01:40.3]}
27... Qxc2 {[%clk 0:00:23.8]} 28. Qe7 {[%clk 0:01:33.8]} 28... Qc8 {[%clk
0:00:24.4]} 29. Na7 {[%clk 0:01:26]} 29... Qd7 {[%clk 0:00:24.8]} 30. Qh4 {[%clk
0:01:21.4]} 30... Bg7 {[%clk 0:00:19]} 31. Nc6 {[%clk 0:01:21.6]} 31... Rc8
{[%clk 0:00:19.9]} 32. Ne7+ {[%clk 0:01:22.2]} 32... Kf7 {[%clk 0:00:19.6]} 33.
Nxc8 {[%clk 0:01:23.1]} 33... Qxc8 {[%clk 0:00:21.2]} 34. Qxb4 {[%clk 0:01:21]}
34... Qc5 {[%clk 0:00:21.9]} 35. Qa4 {[%clk 0:01:20]} 35... Bd4 {[%clk
0:00:19.9]} 36. Qd7+ {[%clk 0:01:20.3]} 36... Kf6 {[%clk 0:00:20]} 37. Qxe6+
{[%clk 0:01:17.3]} 37... Kg5 {[%clk 0:00:21.2]} 38. Qf7 {[%clk 0:01:14.6]} 38...
Kh6 {[%clk 0:00:21.6]} 39. h3 {[%clk 0:01:12.6]} 39... b5 {[%clk 0:00:22.6]} 40.
Qe8 {[%clk 0:01:07.9]} 40... b4 {[%clk 0:00:23.4]} 41. Qd8 {[%clk 0:01:09]}
41... Kh5 {[%clk 0:00:19.3]} 42. Qd7 {[%clk 0:01:06.8]} 42... Kh6 {[%clk
0:00:19.3]} 43. Qd8 {[%clk 0:01:07.2]} 43... Bf2 {[%clk 0:00:20.2]} 44. Rf1
{[%clk 0:00:59.4]} 44... Bg3 {[%clk 0:00:19.5]} 45. Qd3 {[%clk 0:00:56.1]} 45...
f4 {[%clk 0:00:20.4]} 46. Rd1 {[%clk 0:00:51.7]} 46... Bf2 {[%clk 0:00:21.1]}
47. Qd8 {[%clk 0:00:50.5]} 47... b3 {[%clk 0:00:19.9]} 48. Qf6 {[%clk
0:00:44.6]} 48... Bg3 {[%clk 0:00:09.9]} 49. Qb2 {[%clk 0:00:42.3]} 49... Qc2
{[%clk 0:00:10.3]} 50. Qxc2 {[%clk 0:00:41.7]} 50... bxc2 {[%clk 0:00:11.3]} 51.
Rc1 {[%clk 0:00:43.3]} 51... Bf2 {[%clk 0:00:12.3]} 52. Rxc2 {[%clk 0:00:44.4]}
52... Be3 {[%clk 0:00:13.9]} 53. Rc4 {[%clk 0:00:43.6]} 53... Kg5 {[%clk
0:00:15.3]} 54. Re4 {[%clk 0:00:43.7]} 54... h5 {[%clk 0:00:16.4]} 55. Re8
{[%clk 0:00:42.2]} 55... Kh4 {[%clk 0:00:17.5]} 56. Re6 {[%clk 0:00:40.9]} 56...
g5 {[%clk 0:00:18.8]} 57. Re5 {[%clk 0:00:40.8]} 57... Bf2 {[%clk 0:00:19.3]}
58. Re2 {[%clk 0:00:38.7]} 58... Be3 {[%clk 0:00:20.2]} 59. Re1 {[%clk
0:00:38.5]} 59... Kg3 {[%clk 0:00:21.6]} 60. Rf1 {[%clk 0:00:39.3]} 60... Bf2
{[%clk 0:00:21.9]} 61. Rb1 {[%clk 0:00:38.9]} 61... Be3 {[%clk 0:00:21]} 62. Rb3
{[%clk 0:00:39.7]} 62... Kf2 {[%clk 0:00:21.4]} 63. Rb5 {[%clk 0:00:40.4]} 63...
f3 {[%clk 0:00:21.9]} 64. Rf5 {[%clk 0:00:35.3]} 64... Bf4 {[%clk 0:00:21.4]}
65. gxf3 {[%clk 0:00:34.7]} 65... Kg3 {[%clk 0:00:22.4]} 66. h4 {[%clk
0:00:31.6]} 66... Kxh4 {[%clk 0:00:23.4]} 67. Kg2 {[%clk 0:00:31.9]} 67... Bc7
{[%clk 0:00:24.1]} 68. Rf7 {[%clk 0:00:32.1]} 68... Bd6 {[%clk 0:00:25.1]} 69.
Rd7 {[%clk 0:00:32.9]} 69... Be5 {[%clk 0:00:25.8]} 70. Rd5 {[%clk 0:00:33.4]}
70... Bc7 {[%clk 0:00:26.4]} 71. Rc5 {[%clk 0:00:33.6]} 71... Bd6 {[%clk
0:00:27.3]} 72. Rc6 {[%clk 0:00:34.5]} 72... Be5 {[%clk 0:00:28.2]} 73. Rc4+
{[%clk 0:00:32.5]} 73... g4 {[%clk 0:00:29.1]} 74. f4 {[%clk 0:00:31.9]} 74...
Bd6 {[%clk 0:00:30.6]} 75. Rd4 {[%clk 0:00:29.5]} 75... Bc7 {[%clk 0:00:31.8]}
76. Rc4 {[%clk 0:00:30.2]} 76... Bd6 {[%clk 0:00:32.8]} 77. Re4 {[%clk
0:00:28.4]} 77... Bc7 {[%clk 0:00:33.5]} 78. Rd4 {[%clk 0:00:28.7]} 78... Bb8
{[%clk 0:00:34.3]} 79. Rc4 {[%clk 0:00:29.5]} 79... Bd6 {[%clk 0:00:34.7]} 80.
Re4 {[%clk 0:00:27.7]} 80... Bc7 {[%clk 0:00:35.2]} 81. Rb4 {[%clk 0:00:23.6]}
81... Bd6 {[%clk 0:00:35.7]} 82. Rc4 {[%clk 0:00:22.3]} 82... Bb8 {[%clk
0:00:36.4]} 83. Rd4 {[%clk 0:00:19.7]} 83... Bc7 {[%clk 0:00:36.6]} 84. Re4
{[%clk 0:00:20.7]} 84... Bb6 {[%clk 0:00:36]} 85. f5 {[%clk 0:00:20.6]} 85...
Kg5 {[%clk 0:00:36.7]} 86. Re6 {[%clk 0:00:21.9]} 86... Bd4 {[%clk 0:00:37.7]}
87. Rd6 {[%clk 0:00:22.1]} 87... Be5 {[%clk 0:00:38.3]} 88. Rd5 {[%clk
0:00:21.1]} 88... Kxf5 {[%clk 0:00:39.4]} 89. Rd8 {[%clk 0:00:22.3]} 89... h4
{[%clk 0:00:40.3]} 90. Rf8+ {[%clk 0:00:23.6]} 90... Ke4 {[%clk 0:00:41.1]} 91.
Rg8 {[%clk 0:00:22]} 91... Kf5 {[%clk 0:00:41.4]} 92. Rf8+ {[%clk 0:00:22.4]}
92... Bf6 {[%clk 0:00:42.2]} 93. Rg8 {[%clk 0:00:23.6]} 93... Bg5 {[%clk
0:00:43.3]} 94. Rf8+ {[%clk 0:00:24.2]} 94... Kg6 {[%clk 0:00:44.5]} 95. Rg8+
{[%clk 0:00:25.2]} 95... Kf6 {[%clk 0:00:45.8]} 96. Rf8+ {[%clk 0:00:26.1]}
96... Ke6 {[%clk 0:00:46.9]} 97. Rg8 {[%clk 0:00:27]} 97... Kf6 {[%clk 0:00:48]}
98. Rf8+ {[%clk 0:00:28.2]} 98... Kg7 {[%clk 0:00:49.4]} 99. Ra8 {[%clk
0:00:28.7]} 99... Kg6 {[%clk 0:00:48.2]} 100. Rg8+ {[%clk 0:00:29.4]} 100... Kf5
{[%clk 0:00:49.3]} 101. Rh8 {[%clk 0:00:29.2]} 101... Ke4 {[%clk 0:00:48.5]}
102. Rg8 {[%clk 0:00:30.2]} 102... Kf4 {[%clk 0:00:49]} 103. Rf8+ {[%clk
0:00:31.2]} 103... Ke4 {[%clk 0:00:49.6]} 104. Rg8 {[%clk 0:00:31.8]} 104... Kf5
{[%clk 0:00:51]} 105. Rf8+ {[%clk 0:00:32.8]} 105... Bf6 {[%clk 0:00:52.5]} 106.
Rg8 {[%clk 0:00:30.2]} 106... Be5 {[%clk 0:00:53.7]} 107. Rxg4 {[%clk
0:00:30.1]} 107... Kxg4 {[%clk 0:00:54.9]} 108. Kh1 {[%clk 0:00:31.1]} 108...
Kg3 {[%clk 0:00:53.8]} 109. Kg1 {[%clk 0:00:32.1]} 109... h3 {[%clk 0:00:54.4]}
110. Kh1 {[%clk 0:00:33.4]} 110... Kf3 {[%clk 0:00:55.6]} 111. Kg1 {[%clk
0:00:34.6]} 111... h2+ {[%clk 0:00:56.3]} 112. Kh1 {[%clk 0:00:35.4]} 112... Bg3
{[%clk 0:00:58]} 1/2-1/2

[Event "*** MasterClass Titled Tuesday Blitz"]
[Site "Chess.com"]
[Date "2017.10.03"]
[Round "8"]
[White "oskariot"]
[Black "Msb2"]
[Result "0-1"]
[WhiteElo "2493"]
[BlackElo "2627"]
[TimeControl "180+2"]
[EndTime "14:42:43 PDT"]
[Termination "Msb2 won by resignation"]

1. c4 {[%clk 0:02:54.6]} 1... e6 {[%clk 0:03:00.8]} 2. e3 {[%clk 0:02:51.7]}
2... Nf6 {[%clk 0:03:01.1]} 3. Nc3 {[%clk 0:02:53]} 3... d5 {[%clk 0:03:03]} 4.
Qc2 {[%clk 0:02:54.2]} 4... Be7 {[%clk 0:03:03.6]} 5. Nf3 {[%clk 0:02:55]} 5...
O-O {[%clk 0:03:03.5]} 6. b3 {[%clk 0:02:55.9]} 6... c5 {[%clk 0:03:04.2]} 7.
cxd5 {[%clk 0:02:53.4]} 7... exd5 {[%clk 0:03:06.1]} 8. d4 {[%clk 0:02:54.6]}
8... Nc6 {[%clk 0:03:06.5]} 9. dxc5 {[%clk 0:02:54.2]} 9... Bxc5 {[%clk
0:03:06.8]} 10. Bb2 {[%clk 0:02:49.4]} 10... d4 {[%clk 0:03:05.3]} 11. exd4
{[%clk 0:02:50.8]} 11... Nxd4 {[%clk 0:03:06.1]} 12. Nxd4 {[%clk 0:02:51.5]}
12... Qxd4 {[%clk 0:03:06.8]} 13. Be2 {[%clk 0:02:52.7]} 13... Qxf2+ {[%clk
0:03:06.9]} 0-1

[Event "*** MasterClass Titled Tuesday Blitz"]
[Site "Chess.com"]
[Date "2017.10.03"]
[Round "8"]
[White "plouarzel"]
[Black "Indianlad"]
[Result "0-1"]
[WhiteElo "2471"]
[BlackElo "2595"]
[TimeControl "180+2"]
[EndTime "14:44:16 PDT"]
[Termination "Indianlad won by resignation"]

1. e4 {[%clk 0:03:01.9]} 1... c5 {[%clk 0:03:01.1]} 2. Nf3 {[%clk 0:03:02.8]}
2... d6 {[%clk 0:03:02.8]} 3. Bb5+ {[%clk 0:03:03.4]} 3... Nc6 {[%clk
0:02:58.7]} 4. Bxc6+ {[%clk 0:03:01.9]} 4... bxc6 {[%clk 0:02:59.2]} 5. O-O
{[%clk 0:03:03.8]} 5... e5 {[%clk 0:03:00.5]} 6. c3 {[%clk 0:03:04.4]} 6... f5
{[%clk 0:03:00.5]} 7. d4 {[%clk 0:03:03.7]} 7... fxe4 {[%clk 0:03:01.5]} 8. Ng5
{[%clk 0:03:03]} 8... exd4 {[%clk 0:02:59.9]} 9. cxd4 {[%clk 0:03:03.6]} 9...
Nf6 {[%clk 0:02:59.8]} 10. Nc3 {[%clk 0:02:28.8]} 10... d5 {[%clk 0:03:00.7]}
11. dxc5 {[%clk 0:02:25.4]} 11... h6 {[%clk 0:02:52.8]} 12. Nh3 {[%clk
0:02:09.5]} 12... Bxh3 {[%clk 0:02:53.9]} 13. gxh3 {[%clk 0:02:11.4]} 13... Bxc5
{[%clk 0:02:55.1]} 14. Kh1 {[%clk 0:01:46.7]} 14... Qd7 {[%clk 0:02:53.2]} 0-1

[Event "*** MasterClass Titled Tuesday Blitz"]
[Site "Chess.com"]
[Date "2017.10.03"]
[Round "8"]
[White "saraswathii"]
[Black "Dhaydon19"]
[Result "0-1"]
[WhiteElo "2265"]
[BlackElo "2464"]
[TimeControl "180+2"]
[EndTime "14:45:33 PDT"]
[Termination "Dhaydon19 won by resignation"]

1. d4 {[%clk 0:03:01.9]} 1... Nf6 {[%clk 0:03:00.1]} 2. Bf4 {[%clk 0:03:02.5]}
2... b6 {[%clk 0:03:01.1]} 3. e3 {[%clk 0:03:03.2]} 3... Bb7 {[%clk 0:03:02.2]}
4. Nf3 {[%clk 0:03:01.3]} 4... e6 {[%clk 0:03:02.9]} 5. h3 {[%clk 0:03:02.1]}
5... d6 {[%clk 0:03:02.5]} 6. c4 {[%clk 0:03:02.8]} 6... Nbd7 {[%clk 0:03:03.8]}
7. Nc3 {[%clk 0:03:03.3]} 7... Be7 {[%clk 0:03:04.5]} 8. Bd3 {[%clk 0:03:02.1]}
8... c5 {[%clk 0:03:04.4]} 9. O-O {[%clk 0:03:02.2]} 9... O-O {[%clk 0:03:04.5]}
10. Re1 {[%clk 0:02:58.4]} 10... cxd4 {[%clk 0:03:02.9]} 11. exd4 {[%clk
0:02:58.9]} 11... d5 {[%clk 0:03:03.5]} 12. Ne5 {[%clk 0:02:57.8]} 12... dxc4
{[%clk 0:03:03.1]} 13. Nxc4 {[%clk 0:02:54.8]} 13... Nd5 {[%clk 0:03:00.3]} 14.
Bg3 {[%clk 0:02:48.3]} 14... N7f6 {[%clk 0:02:57]} 15. Ne3 {[%clk 0:02:38.6]}
15... Rc8 {[%clk 0:02:49.9]} 16. Nexd5 {[%clk 0:02:37.2]} 16... Nxd5 {[%clk
0:02:49.6]} 17. Nxd5 {[%clk 0:02:37.9]} 17... Bxd5 {[%clk 0:02:48.9]} 18. a3
{[%clk 0:02:33]} 18... Qd7 {[%clk 0:02:48.6]} 19. Qg4 {[%clk 0:02:30]} 19... g6
{[%clk 0:02:38.2]} 20. Be5 {[%clk 0:02:19.6]} 20... Qd8 {[%clk 0:02:12.9]} 21.
Rac1 {[%clk 0:02:11.1]} 21... Bb7 {[%clk 0:02:04.1]} 22. Rxc8 {[%clk 0:02:05.6]}
22... Qxc8 {[%clk 0:02:04.8]} 23. Rc1 {[%clk 0:02:03.1]} 23... Qxc1+ {[%clk
0:01:59.8]} 0-1

[Event "*** MasterClass Titled Tuesday Blitz"]
[Site "Chess.com"]
[Date "2017.10.03"]
[Round "8"]
[White "sergiochess83"]
[Black "Paralinch"]
[Result "1/2-1/2"]
[WhiteElo "2728"]
[BlackElo "2690"]
[TimeControl "180+2"]
[EndTime "14:46:38 PDT"]
[Termination "Game drawn by repetition"]

1. Nf3 {[%clk 0:03:01.9]} 1... d5 {[%clk 0:03:00.6]} 2. d4 {[%clk 0:03:01.8]}
2... Nf6 {[%clk 0:03:01.8]} 3. c4 {[%clk 0:03:02.6]} 3... dxc4 {[%clk
0:03:03.7]} 4. e3 {[%clk 0:03:01.7]} 4... e6 {[%clk 0:03:04.9]} 5. Bxc4 {[%clk
0:03:02.7]} 5... c5 {[%clk 0:03:06.6]} 6. O-O {[%clk 0:02:55.9]} 6... a6 {[%clk
0:03:08]} 7. dxc5 {[%clk 0:02:47]} 7... Bxc5 {[%clk 0:03:09.9]} 8. Qxd8+ {[%clk
0:02:45.3]} 8... Kxd8 {[%clk 0:03:11.8]} 9. Nbd2 {[%clk 0:02:43.9]} 9... Ke7
{[%clk 0:03:11.4]} 10. Be2 {[%clk 0:02:38.4]} 10... Bd7 {[%clk 0:03:12.1]} 11.
Ne5 {[%clk 0:02:38]} 11... Bb5 {[%clk 0:03:12.1]} 12. Bxb5 {[%clk 0:02:34.7]}
12... axb5 {[%clk 0:03:13.1]} 13. Nb3 {[%clk 0:02:35]} 13... Bd6 {[%clk
0:02:58.1]} 14. Nf3 {[%clk 0:02:35.5]} 14... Nc6 {[%clk 0:02:57.8]} 15. Nfd4
{[%clk 0:02:30.1]} 15... b4 {[%clk 0:02:50.7]} 16. Bd2 {[%clk 0:02:29.2]} 16...
Ne4 {[%clk 0:02:49.7]} 17. Nxc6+ {[%clk 0:02:25.3]} 17... bxc6 {[%clk
0:02:49.4]} 18. Rfc1 {[%clk 0:02:27.2]} 18... Nxd2 {[%clk 0:02:44.4]} 19. Nxd2
{[%clk 0:02:28.1]} 19... Ra6 {[%clk 0:02:45.9]} 20. Nc4 {[%clk 0:01:55.9]} 20...
Rha8 {[%clk 0:02:45.2]} 21. Rd1 {[%clk 0:01:47]} 21... Bc7 {[%clk 0:02:21.3]}
22. a3 {[%clk 0:01:37.3]} 22... bxa3 {[%clk 0:02:22.1]} 23. Rxa3 {[%clk
0:01:37.9]} 23... Rxa3 {[%clk 0:02:01.8]} 24. bxa3 {[%clk 0:01:38.8]} 24... Ra4
{[%clk 0:02:00.4]} 25. Rc1 {[%clk 0:01:37.1]} 25... Bd6 {[%clk 0:02:00.7]} 26.
Rc3 {[%clk 0:01:21.3]} 26... Bb4 {[%clk 0:01:57.8]} 27. Rb3 {[%clk 0:01:16.8]}
27... Bc5 {[%clk 0:01:58.8]} 28. Rc3 {[%clk 0:01:17.4]} 28... Bb4 {[%clk
0:01:59.9]} 29. Rb3 {[%clk 0:01:18.4]} 29... Bc5 {[%clk 0:02:01.2]} 30. Rc3
{[%clk 0:01:19.5]} 30... Bb4 {[%clk 0:02:02.5]} 1/2-1/2

[Event "*** MasterClass Titled Tuesday Blitz"]
[Site "Chess.com"]
[Date "2017.10.03"]
[Round "8"]
[White "HanSchut"]
[Black "VojtechPlat"]
[Result "0-1"]
[WhiteElo "2236"]
[BlackElo "2671"]
[TimeControl "180+2"]
[EndTime "14:46:52 PDT"]
[Termination "VojtechPlat won on time"]

1. e4 {[%clk 0:03:01]} 1... c5 {[%clk 0:02:55.7]} 2. Nf3 {[%clk 0:03:01.6]} 2...
Nc6 {[%clk 0:02:56.7]} 3. d4 {[%clk 0:03:02.6]} 3... cxd4 {[%clk 0:02:57.7]} 4.
Nxd4 {[%clk 0:03:03.8]} 4... g6 {[%clk 0:02:50.6]} 5. c4 {[%clk 0:03:04.1]} 5...
Bg7 {[%clk 0:02:51.4]} 6. Be3 {[%clk 0:03:05.6]} 6... Qb6 {[%clk 0:02:53]} 7.
Nb5 {[%clk 0:02:42.2]} 7... Qa5+ {[%clk 0:02:53.5]} 8. N5c3 {[%clk 0:02:41.2]}
8... Nf6 {[%clk 0:02:53.5]} 9. Bd3 {[%clk 0:02:36.1]} 9... d6 {[%clk 0:02:54.5]}
10. O-O {[%clk 0:02:35.3]} 10... Ng4 {[%clk 0:02:54.5]} 11. Bd2 {[%clk
0:02:30.1]} 11... Qe5 {[%clk 0:02:54.5]} 12. g3 {[%clk 0:02:01.6]} 12... h5
{[%clk 0:02:54.9]} 13. Nd5 {[%clk 0:01:51.6]} 13... h4 {[%clk 0:02:49.5]} 14.
Bc3 {[%clk 0:01:50.7]} 14... Nd4 {[%clk 0:02:50.1]} 15. f4 {[%clk 0:01:42.4]}
15... Qh5 {[%clk 0:02:50.9]} 16. Qa4+ {[%clk 0:00:42]} 16... Bd7 {[%clk
0:02:49.2]} 17. Qa5 {[%clk 0:00:41]} 17... b5 {[%clk 0:02:31.5]} 18. Nc7+ {[%clk
0:00:19.9]} 18... Kf8 {[%clk 0:02:31]} 19. Nxa8 {[%clk 0:00:10.4]} 19... hxg3
{[%clk 0:02:31.6]} 20. Qd8+ {[%clk 0:00:11.1]} 20... Be8 {[%clk 0:02:32.8]} 21.
h4 {[%clk 0:00:04.8]} 21... Qxh4 {[%clk 0:02:32.4]} 22. Qxe8+ {[%clk 0:00:04.4]}
22... Kxe8 {[%clk 0:02:33]} 23. Nc7+ {[%clk 0:00:06.3]} 23... Kd7 {[%clk
0:02:33.7]} 0-1

[Event "*** MasterClass Titled Tuesday Blitz"]
[Site "Chess.com"]
[Date "2017.10.03"]
[Round "8"]
[White "Hanging_pointer"]
[Black "chessdjw"]
[Result "0-1"]
[WhiteElo "2341"]
[BlackElo "2296"]
[TimeControl "180+2"]
[EndTime "14:46:53 PDT"]
[Termination "chessdjw won by checkmate"]

1. e4 {[%clk 0:03:01.9]} 1... e5 {[%clk 0:03:00.6]} 2. Nf3 {[%clk 0:03:02.7]}
2... Nc6 {[%clk 0:03:01.7]} 3. Bc4 {[%clk 0:03:04.3]} 3... Bc5 {[%clk
0:03:01.8]} 4. O-O {[%clk 0:03:05.3]} 4... Nf6 {[%clk 0:03:03.3]} 5. d3 {[%clk
0:03:06.8]} 5... a6 {[%clk 0:03:02.8]} 6. h3 {[%clk 0:03:07.4]} 6... Ba7 {[%clk
0:03:03]} 7. c3 {[%clk 0:03:02.9]} 7... d6 {[%clk 0:03:03.8]} 8. Bb3 {[%clk
0:03:03.7]} 8... h6 {[%clk 0:02:56.8]} 9. Re1 {[%clk 0:03:01.3]} 9... O-O {[%clk
0:02:56.8]} 10. Nbd2 {[%clk 0:03:01.7]} 10... Be6 {[%clk 0:02:56.6]} 11. Nf1
{[%clk 0:03:02.9]} 11... Bxb3 {[%clk 0:02:52.6]} 12. Qxb3 {[%clk 0:03:03.1]}
12... Qd7 {[%clk 0:02:53.9]} 13. Ng3 {[%clk 0:03:02.9]} 13... b5 {[%clk
0:02:50.6]} 14. Be3 {[%clk 0:02:53]} 14... Bxe3 {[%clk 0:02:50.6]} 15. Rxe3
{[%clk 0:02:50.6]} 15... Rfe8 {[%clk 0:02:51.5]} 16. Qc2 {[%clk 0:02:47.9]}
16... d5 {[%clk 0:02:50.6]} 17. exd5 {[%clk 0:02:27.6]} 17... Nxd5 {[%clk
0:02:52.5]} 18. Ree1 {[%clk 0:02:28.7]} 18... Nf4 {[%clk 0:02:50.9]} 19. Rad1
{[%clk 0:02:29.1]} 19... Qd5 {[%clk 0:02:48.3]} 20. c4 {[%clk 0:01:39.9]} 20...
Qd6 {[%clk 0:02:10.8]} 21. cxb5 {[%clk 0:01:09.3]} 21... axb5 {[%clk 0:02:12.7]}
22. a3 {[%clk 0:01:05.3]} 22... Qd5 {[%clk 0:01:58.6]} 23. Kh2 {[%clk
0:00:47.2]} 23... Nd4 {[%clk 0:01:53.7]} 24. Nxd4 {[%clk 0:00:46.4]} 24... Qxg2#
{[%clk 0:01:53.5]} 0-1

[Event "*** MasterClass Titled Tuesday Blitz"]
[Site "Chess.com"]
[Date "2017.10.03"]
[Round "8"]
[White "Gudmundur_Kjartansson"]
[Black "PulpanJ"]
[Result "1-0"]
[WhiteElo "2298"]
[BlackElo "2322"]
[TimeControl "180+2"]
[EndTime "14:47:13 PDT"]
[Termination "Gudmundur_Kjartansson won by resignation"]

1. e4 {[%clk 0:03:01.9]} 1... c5 {[%clk 0:02:56.3]} 2. Nf3 {[%clk 0:03:02.1]}
2... Nc6 {[%clk 0:02:56.5]} 3. Bb5 {[%clk 0:03:02.1]} 3... g6 {[%clk 0:02:52]}
4. Bxc6 {[%clk 0:03:02.6]} 4... dxc6 {[%clk 0:02:46.9]} 5. d3 {[%clk 0:03:02.9]}
5... Bg7 {[%clk 0:02:21]} 6. h3 {[%clk 0:03:03.6]} 6... b6 {[%clk 0:02:17.4]} 7.
Nc3 {[%clk 0:03:03.9]} 7... Nh6 {[%clk 0:02:14.7]} 8. Be3 {[%clk 0:02:59.5]}
8... f6 {[%clk 0:02:14.5]} 9. Qd2 {[%clk 0:02:59.4]} 9... Nf7 {[%clk 0:02:14.8]}
10. a3 {[%clk 0:02:49.6]} 10... a5 {[%clk 0:02:12.8]} 11. O-O {[%clk 0:02:47.3]}
11... O-O {[%clk 0:02:01.2]} 12. Na4 {[%clk 0:02:48.2]} 12... e5 {[%clk
0:02:00]} 13. b4 {[%clk 0:02:47.7]} 13... axb4 {[%clk 0:01:59.1]} 14. axb4
{[%clk 0:02:48.3]} 14... cxb4 {[%clk 0:01:39.3]} 15. Bxb6 {[%clk 0:02:46.9]}
15... Qd7 {[%clk 0:01:40.7]} 16. Bc5 {[%clk 0:02:46.7]} 16... Re8 {[%clk
0:01:37.3]} 17. Nb6 {[%clk 0:02:46.6]} 17... Rxa1 {[%clk 0:01:37.6]} 18. Nxd7
{[%clk 0:02:47.7]} 18... Rxf1+ {[%clk 0:01:39.5]} 19. Kxf1 {[%clk 0:02:49.3]}
19... Bxd7 {[%clk 0:01:41.4]} 20. Qxb4 {[%clk 0:02:49.8]} 20... Nd8 {[%clk
0:01:39.7]} 21. Nd2 {[%clk 0:02:43.3]} 21... Ne6 {[%clk 0:01:39.3]} 22. Be3
{[%clk 0:02:39.3]} 22... c5 {[%clk 0:01:34.1]} 23. Qb7 {[%clk 0:02:38.8]} 23...
Re7 {[%clk 0:01:30.4]} 24. Nc4 {[%clk 0:02:38.4]} 24... Bf8 {[%clk 0:01:25]} 25.
Qb8 {[%clk 0:02:31.7]} 25... Re8 {[%clk 0:01:16.7]} 26. Qa7 {[%clk 0:02:31.6]}
26... Re7 {[%clk 0:01:15.9]} 27. Bxc5 {[%clk 0:02:30.1]} 27... Nxc5 {[%clk
0:01:15.7]} 28. Qxc5 {[%clk 0:02:31.1]} 28... Be6 {[%clk 0:01:17.3]} 29. Ne3
{[%clk 0:02:27]} 29... Rb7 {[%clk 0:01:15.9]} 30. Qc6 {[%clk 0:02:27.9]} 30...
Rb1+ {[%clk 0:01:15.6]} 31. Ke2 {[%clk 0:02:28.5]} 31... Kf7 {[%clk 0:01:17.3]}
32. Qc7+ {[%clk 0:02:27.8]} 32... Be7 {[%clk 0:01:16.5]} 33. Nd5 {[%clk
0:02:28.2]} 33... Bxd5 {[%clk 0:01:18]} 34. exd5 {[%clk 0:02:29.1]} 34... Ke8
{[%clk 0:01:15.8]} 35. d6 {[%clk 0:02:30.1]} 35... Bd8 {[%clk 0:01:17.7]} 36.
Qxh7 {[%clk 0:02:28.3]} 36... Rb6 {[%clk 0:01:16.3]} 37. d7+ {[%clk 0:02:28]}
37... Kf8 {[%clk 0:01:14.3]} 38. Qh8+ {[%clk 0:02:29.2]} 38... Ke7 {[%clk
0:01:14.7]} 39. Qe8+ {[%clk 0:02:31.1]} 1-0

[Event "*** MasterClass Titled Tuesday Blitz"]
[Site "Chess.com"]
[Date "2017.10.03"]
[Round "8"]
[White "MisaPap"]
[Black "josiwales"]
[Result "1-0"]
[WhiteElo "2534"]
[BlackElo "2341"]
[TimeControl "180+2"]
[EndTime "14:47:22 PDT"]
[Termination "MisaPap won by resignation"]

1. e4 {[%clk 0:03:01.9]} 1... c5 {[%clk 0:03:01.2]} 2. Nf3 {[%clk 0:03:02.1]}
2... Nc6 {[%clk 0:03:02.8]} 3. d4 {[%clk 0:03:03.2]} 3... cxd4 {[%clk
0:03:04.7]} 4. Nxd4 {[%clk 0:03:04.6]} 4... Nf6 {[%clk 0:03:03.7]} 5. Nc3 {[%clk
0:03:05.3]} 5... e5 {[%clk 0:03:03.3]} 6. Ndb5 {[%clk 0:03:06.4]} 6... d6 {[%clk
0:03:04.8]} 7. Bg5 {[%clk 0:03:07.5]} 7... a6 {[%clk 0:03:05.8]} 8. Na3 {[%clk
0:03:08.6]} 8... b5 {[%clk 0:03:07.1]} 9. Bxf6 {[%clk 0:03:09.4]} 9... gxf6
{[%clk 0:03:06.9]} 10. Nd5 {[%clk 0:03:10.7]} 10... f5 {[%clk 0:03:03.1]} 11.
exf5 {[%clk 0:03:08.6]} 11... Bxf5 {[%clk 0:03:03.1]} 12. c3 {[%clk 0:02:35.8]}
12... Bg7 {[%clk 0:02:59.7]} 13. Nc2 {[%clk 0:02:35.3]} 13... O-O {[%clk
0:02:53]} 14. Nce3 {[%clk 0:02:36.1]} 14... Bg6 {[%clk 0:02:54.1]} 15. h4 {[%clk
0:02:33.9]} 15... h5 {[%clk 0:02:37.5]} 16. Be2 {[%clk 0:02:29.8]} 16... f5
{[%clk 0:02:22.5]} 17. Bxh5 {[%clk 0:02:29.5]} 17... Qe8 {[%clk 0:02:23.7]} 18.
Bxg6 {[%clk 0:02:27]} 18... Qxg6 {[%clk 0:02:25.6]} 19. h5 {[%clk 0:02:24.9]}
19... Qg5 {[%clk 0:02:26.9]} 20. Nc7 {[%clk 0:02:14.9]} 20... Ne7 {[%clk
0:01:20.8]} 21. Nxa8 {[%clk 0:02:09.4]} 21... f4 {[%clk 0:01:18.6]} 22. Qg4
{[%clk 0:02:06.4]} 22... Qf6 {[%clk 0:01:14.5]} 23. Nf1 {[%clk 0:01:50]} 23...
Nf5 {[%clk 0:00:42.6]} 24. Nc7 {[%clk 0:01:41.6]} 24... Rc8 {[%clk 0:00:38.2]}
25. Nd5 {[%clk 0:01:41.3]} 25... Qe6 {[%clk 0:00:34]} 26. Qxf5 {[%clk
0:01:41.4]} 1-0